fUST/lending_fUST_20250709
["ID","MTS","AMOUNT","RATE_DAILY","PERIOD"]
[370532747,1752058232066,-460.0,0.00019178,2]
[370532749,1752058232076,-460.0,0.00019178,2]
[370532751,1752058232086,-460.0,0.00019178,2]
[370532753,1752058232096,-460.0,0.00019178,2]
[370532755,1752058232106,-460.0,0.00019178,2]
[370532757,1752058232115,-460.0,0.00019178,2]
[370532759,1752058232125,-460.0,0.00019178,2]
[370532761,1752058232134,-460.0,0.00019178,2]
[370532763,1752058232144,-460.0,0.00019178,2]
[370532765,1752058232154,-460.0,0.00019178,2]
[370532767,1752058232163,-460.0,0.00019178,2]
[370532789,1752058232379,-460.0,0.00019178,2]
[370532791,1752058232389,-460.0,0.00019178,2]
[370532793,1752058232398,-460.0,0.00019178,2]
[370532795,1752058232408,-460.0,0.00019178,2]
[370532797,1752058232417,-460.0,0.00019178,2]
[370532799,1752058232427,-460.0,0.00019178,2]
[370532801,1752058232436,-460.0,0.00019178,2]
[370532804,1752058232457,-460.0,0.00019178,2]
[370532806,1752058232476,-221.98,0.00019178,2]
[370532809,1752058232489,-460.0,0.00019178,2]
[370532811,1752058232502,-347.67313241,0.00019178,2]
[370532813,1752058232514,-460.0,0.00019178,2]
[370532816,1752058232527,-598.62206074,0.00019178,2]
[370532818,1752058232538,-460.0,0.00019178,2]
[370532820,1752058232550,-460.0,0.00019178,2]
[370532822,1752058232560,-460.0,0.00019178,2]
[370532824,1752058232572,-460.0,0.00019178,2]
[370532827,1752058232587,-460.0,0.00019178,2]
[370532829,1752058232599,-460.0,0.00019178,2]
[370532831,1752058232611,-460.0,0.00019178,2]
[370532833,1752058232623,-460.0,0.00019178,2]
[370532835,1752058232635,-460.0,0.00019178,2]
[370532838,1752058232647,-460.0,0.00019178,2]
[370532840,1752058232658,-460.0,0.00019178,2]
[370532842,1752058232670,-460.0,0.00019178,2]
[370532844,1752058232682,-460.0,0.00019178,2]
[370532846,1752058232694,-460.0,0.00019178,2]
[370532848,1752058232705,-460.0,0.00019178,2]
[370532851,1752058232717,-460.0,0.00019178,2]
[370532853,1752058232729,-460.0,0.00019178,2]
[370532855,1752058232741,-460.0,0.00019178,2]
[370532857,1752058232752,-460.0,0.00019178,2]
[370532859,1752058232763,-460.0,0.00019178,2]
[370532861,1752058232774,-460.0,0.00019178,2]
[370532864,1752058232786,-339.79520022,0.00019178,2]
[370532866,1752058232800,-461.53944402,0.00019178,2]
[370532868,1752058232812,-460.0,0.00019178,2]
[370532871,1752058232824,-460.0,0.00019178,2]
[370532873,1752058232836,-572.76,0.00019178,2]
[370532875,1752058232854,-460.0,0.00019178,2]
[370532877,1752058232866,-460.0,0.00019178,2]
[370532879,1752058232877,-460.0,0.00019178,2]
[370532881,1752058232889,-460.0,0.00019178,2]
[370532883,1752058232900,-460.0,0.00019178,2]
[370532886,1752058232911,-156.371078,0.00019178,2]
[370532888,1752058232922,-460.0,0.00019178,2]
[370532890,1752058232934,-460.0,0.00019178,2]
[370532892,1752058232944,-5881.07,0.00019178,2]
[370532894,1752058232954,-460.0,0.00019178,2]
[370532896,1752058232965,-460.0,0.00019178,2]
[370532898,1752058232976,-460.0,0.00019178,2]
[370532900,1752058232986,-456.0,0.00019178,2]
[370532902,1752058232997,-460.0,0.00019178,2]
[370532905,1752058233010,-460.0,0.00019178,2]
[370532907,1752058233022,-1037.16,0.00019178,2]
[370532909,1752058233033,-159.29,0.00019178,2]
[370532911,1752058233047,-460.0,0.00019178,2]
[370532913,1752058233059,-460.0,0.00019178,2]
[370532916,1752058233070,-460.0,0.00019178,2]
[370532918,1752058233082,-460.0,0.00019178,2]
[370532920,1752058233095,-460.0,0.00019178,2]
[370532922,1752058233106,-460.0,0.00019178,2]
[370532924,1752058233119,-460.0,0.00019178,2]
[370532927,1752058233131,-460.0,0.00019178,2]
[370532929,1752058233141,-460.0,0.00019178,2]
[370532931,1752058233154,-2520.82,0.00019178,2]
[370532933,1752058233166,-460.0,0.00019178,2]
[370532935,1752058233177,-460.0,0.00019178,2]
[370532938,1752058233188,-460.0,0.00019178,2]
[370532940,1752058233199,-460.0,0.00019178,2]
[370532941,1752058233209,-460.0,0.00019178,2]
[370532944,1752058233219,-1155.12,0.00019178,2]
[370532946,1752058233233,-460.0,0.00019178,2]
[370532948,1752058233244,-460.0,0.00019178,2]
[370532950,1752058233256,-460.0,0.00019178,2]
[370532952,1752058233267,-2520.59,0.00019178,2]
[370532955,1752058233280,-460.0,0.00019178,2]
[370532957,1752058233292,-460.0,0.00019178,2]
[370532959,1752058233306,-460.0,0.00019178,2]
[370532961,1752058233317,-460.0,0.00019178,2]
[370532963,1752058233328,-1501.56,0.00019178,2]
[370532965,1752058233338,-435.41,0.00019178,2]
[370532967,1752058233348,-460.0,0.00019178,2]
[370532969,1752058233359,-460.0,0.00019178,2]
[370532971,1752058233370,-846.1,0.00019178,2]
[370532974,1752058233381,-460.0,0.00019178,2]
[370532976,1752058233394,-460.0,0.00019178,2]
[370532978,1752058233407,-460.0,0.00019178,2]
[370532980,1752058233418,-1282.99,0.00019178,2]
[370532982,1752058233429,-460.0,0.00019178,2]
[370532984,1752058233440,-460.0,0.00019178,2]
[370532986,1752058233451,-581.29,0.00019178,2]
[370532989,1752058233462,-370.10128747,0.00019178,2]
[370533004,1752058233607,-1226.66871253,0.00019178,2]
[370533006,1752058233618,-1055.36,0.00019178,2]
[370533008,1752058233629,-460.0,0.00019178,2]
[370533010,1752058233640,-687.51,0.00019178,2]
[370533012,1752058233651,-58.72842497,0.00019178,2]
[370533363,1752058237822,-401.27157503,0.00019178,2]
[370533364,1752058237832,-460.0,0.00019178,2]
[370533365,1752058237841,-178.21062223,0.00019178,2]
[370533366,1752058237851,-460.0,0.00019178,2]
[370533367,1752058237861,-460.0,0.00019178,2]
[370533368,1752058237870,-510.27,0.00019178,2]
[370533369,1752058237880,-77.45429177,0.00019178,2]
[370533383,1752058240409,-382.54570823,0.00019178,2]
[370533384,1752058240419,-798.64,0.00019178,2]
[370533385,1752058240430,-460.0,0.00019178,2]
[370533386,1752058240440,-460.0,0.00019178,2]
[370533387,1752058240449,-460.0,0.00019178,2]
[370533388,1752058240459,-182.13,0.00019178,2]
[370533389,1752058240469,-460.0,0.00019178,2]
[370533390,1752058240479,-460.0,0.00019178,2]
[370533391,1752058240487,-106.65428732,0.00019178,2]
[370533711,1752058245048,-353.34571268,0.00019178,2]
[370533713,1752058245059,-460.0,0.00019178,2]
[370533715,1752058245068,-460.0,0.00019178,2]
[370533717,1752058245077,-460.0,0.00019178,2]
[370533719,1752058245086,-460.0,0.00019178,2]
[370533721,1752058245096,-473.17,0.00019178,2]
[370533722,1752058245105,-556.26,0.00019178,2]
[370533724,1752058245114,-460.0,0.00019178,2]
[370533725,1752058245122,-460.0,0.00019178,2]
[370533727,1752058245131,-460.0,0.00019178,2]
[370533728,1752058245141,-460.0,0.00019178,2]
[370533729,1752058245150,-857.07,0.00019178,2]
[370533730,1752058245159,-1040.69,0.00019178,2]
[370533731,1752058245169,-460.0,0.00019178,2]
[370533732,1752058245179,-460.0,0.00019178,2]
[370533733,1752058245189,-460.0,0.00019178,2]
[370533734,1752058245198,-460.0,0.00019178,2]
[370533735,1752058245208,-460.0,0.00019178,2]
[370533736,1752058245221,-460.0,0.00019178,2]
[370533737,1752058245230,-460.0,0.00019178,2]
[370533738,1752058245239,-5636.02,0.00019178,2]
[370533739,1752058245250,-460.0,0.00019178,2]
[370533740,1752058245264,-500.0,0.00019178,2]
[370533741,1752058245274,-221.975074,0.00019178,2]
[370533742,1752058245283,-427.78894423,0.0001919,2]
[370533743,1752058245294,-201.31156486,0.00019451,2]
[370533744,1752058245304,-500.0,0.00019451,2]
[370533745,1752058245313,-500.0,0.00019451,2]
[370533746,1752058245324,-500.0,0.00019451,2]
[370533747,1752058245335,-500.0,0.00019451,2]
[370533748,1752058245346,-166.68913972,0.00019451,2]
[370533749,1752058245355,-500.0,0.00019451,2]
[370533750,1752058245365,-500.0,0.00019451,2]
[370533751,1752058245375,-500.0,0.00019451,2]
[370533752,1752058245384,-7.71472591,0.00019451,2]
[370533772,1752058263067,4178.17011001,0.000183,2]
[370533773,1752058263098,5821.82988999,0.000183,2]
[370533774,1752058277100,3178.17011001,0.000183,2]
[370533775,1752058277122,6821.82988999,0.000183,2]
[370533785,1752059358945,200.996068,0.00013699,2]
[370533829,1752059432216,-158.3334309,0.0001838,2]
[370533831,1752059432226,-219.44572336,0.000189,2]
[370533842,1752059432322,-14.49903726,0.000189,2]
[370533843,1752059432332,-1114.03,0.00019168,3]
[370533845,1752059432342,-557.02,0.00019168,3]
[370533847,1752059432351,-278.51,0.00019168,3]
[370533849,1752059432361,-509.0,0.00019176,2]
[370533851,1752059432370,-300.0,0.00019176,2]
[370533868,1752059432575,-50000.0,0.00019177,2]
[370533869,1752059432584,-505.82092808,0.00019177,2]
[370533871,1752059432594,-500.0,0.00019177,2]
[370533872,1752059432603,-500.0,0.00019177,2]
[370533873,1752059432614,-535.30420684,0.00019177,2]
[370533875,1752059432624,-500.0,0.00019177,2]
[370533877,1752059432637,-500.0,0.00019177,2]
[370533879,1752059432646,-500.0,0.00019177,2]
[370533881,1752059432656,-500.0,0.00019177,2]
[370533882,1752059432665,-500.0,0.00019177,2]
[370533883,1752059432675,-500.0,0.00019177,2]
[370533884,1752059432684,-604.05076214,0.00019177,2]
[370533885,1752059432694,-500.0,0.00019177,2]
[370533886,1752059432703,-500.0,0.00019177,2]
[370533887,1752059432712,-500.0,0.00019177,2]
[370533888,1752059432723,-202.40705927,0.00019177,2]
[370533889,1752059432732,-233.78341801,0.00019177,2]
[370533890,1752059432742,-6816.4499256,0.00019178,2]
[370533891,1752059432751,-22011.70196849,0.00019178,2]
[370533902,1752059438089,-835.55,0.00019168,3]
[370533903,1752059438100,-1383.2142056,0.00019178,2]
[370533904,1752059438110,-460.0,0.00019178,2]
[370533905,1752059438119,-460.0,0.00019178,2]
[370533906,1752059438129,-446.31775844,0.00019178,2]
[370533907,1752059438139,-460.0,0.00019178,2]
[370533908,1752059438148,-460.0,0.00019178,2]
[370533909,1752059438158,-460.0,0.00019178,2]
[370533910,1752059438168,-460.0,0.00019178,2]
[370533912,1752059438177,-460.0,0.00019178,2]
[370533913,1752059438186,-460.0,0.00019178,2]
[370533914,1752059438195,-460.0,0.00019178,2]
[370533915,1752059438205,-460.0,0.00019178,2]
[370533916,1752059438215,-460.0,0.00019178,2]
[370533917,1752059438224,-460.0,0.00019178,2]
[370533918,1752059438234,-460.0,0.00019178,2]
[370533919,1752059438243,-460.0,0.00019178,2]
[370533920,1752059438253,-460.0,0.00019178,2]
[370533921,1752059438263,-460.0,0.00019178,2]
[370533922,1752059438273,-460.0,0.00019178,2]
[370533923,1752059438282,-460.0,0.00019178,2]
[370533924,1752059438291,-465.18212705,0.00019178,2]
[370533925,1752059438302,-460.0,0.00019178,2]
[370533926,1752059438312,-583.09962135,0.00019178,2]
[370533927,1752059438322,-460.0,0.00019178,2]
[370533928,1752059438331,-460.0,0.00019178,2]
[370533929,1752059438340,-460.0,0.00019178,2]
[370533930,1752059438350,-502.58,0.00019178,2]
[370533931,1752059438359,-460.85015021,0.00019178,2]
[370533932,1752059438368,-460.0,0.00019178,2]
[370533933,1752059438378,-460.0,0.00019178,2]
[370533934,1752059438387,-460.0,0.00019178,2]
[370533935,1752059438396,-460.0,0.00019178,2]
[370533936,1752059438405,-460.0,0.00019178,2]
[370533937,1752059438415,-460.0,0.00019178,2]
[370533938,1752059438425,-460.0,0.00019178,2]
[370533939,1752059438434,-460.0,0.00019178,2]
[370533940,1752059438445,-460.0,0.00019178,2]
[370533941,1752059438455,-559.2648698,0.00019178,2]
[370533942,1752059438465,-460.0,0.00019178,2]
[370533943,1752059438475,-460.0,0.00019178,2]
[370533944,1752059438484,-460.0,0.00019178,2]
[370533945,1752059438493,-460.0,0.00019178,2]
[370533946,1752059438503,-460.0,0.00019178,2]
[370533947,1752059438512,-460.0,0.00019178,2]
[370533948,1752059438522,-460.0,0.00019178,2]
[370533949,1752059438532,-460.0,0.00019178,2]
[370533950,1752059438541,-460.0,0.00019178,2]
[370533951,1752059438551,-460.0,0.00019178,2]
[370533952,1752059438561,-460.0,0.00019178,2]
[370533953,1752059438570,-1000.0,0.00019178,2]
[370533954,1752059438581,-460.0,0.00019178,2]
[370533955,1752059438591,-460.0,0.00019178,2]
[370533956,1752059438601,-460.0,0.00019178,2]
[370533957,1752059438613,-460.0,0.00019178,2]
[370533958,1752059438625,-460.0,0.00019178,2]
[370533959,1752059438639,-460.0,0.00019178,2]
[370533960,1752059438648,-460.0,0.00019178,2]
[370533961,1752059438658,-460.0,0.00019178,2]
[370533962,1752059438667,-460.0,0.00019178,2]
[370533963,1752059438677,-460.0,0.00019178,2]
[370533964,1752059438687,-275.03,0.00019178,2]
[370533965,1752059438696,-310.50751161,0.00019178,2]
[370533966,1752059438706,-460.0,0.00019178,2]
[370533967,1752059438715,-460.0,0.00019178,2]
[370533968,1752059438725,-460.0,0.00019178,2]
[370533969,1752059438735,-460.0,0.00019178,2]
[370533970,1752059438745,-460.0,0.00019178,2]
[370533971,1752059438754,-460.0,0.00019178,2]
[370533972,1752059438764,-460.0,0.00019178,2]
[370533973,1752059438774,-460.0,0.00019178,2]
[370533974,1752059438784,-460.0,0.00019178,2]
[370533975,1752059438793,-172.22,0.00019178,2]
[370533976,1752059438802,-168.9186498,0.00019178,2]
[370533977,1752059438812,-460.0,0.00019178,2]
[370533978,1752059438821,-460.0,0.00019178,2]
[370533979,1752059438830,-460.0,0.00019178,2]
[370533980,1752059438840,-460.0,0.00019178,2]
[370533981,1752059438850,-460.0,0.00019178,2]
[370533982,1752059438859,-460.0,0.00019178,2]
[370533983,1752059438869,-460.0,0.00019178,2]
[370533984,1752059438879,-460.0,0.00019178,2]
[370533985,1752059438889,-460.0,0.00019178,2]
[370533986,1752059438898,-460.0,0.00019178,2]
[370533987,1752059438908,-194.2,0.00019178,2]
[370533988,1752059438917,-227.05,0.00019178,2]
[370533989,1752059438927,-460.0,0.00019178,2]
[370533990,1752059438937,-509.29,0.00019178,2]
[370533991,1752059438946,-460.0,0.00019178,2]
[370533992,1752059438955,-460.0,0.00019178,2]
[370533993,1752059438965,-460.0,0.00019178,2]
[370533994,1752059438974,-460.0,0.00019178,2]
[370533995,1752059438983,-460.0,0.00019178,2]
[370533996,1752059438993,-678.22,0.00019178,2]
[370533997,1752059439003,-491.63,0.00019178,2]
[370533998,1752059439012,-460.0,0.00019178,2]
[370533999,1752059439022,-460.0,0.00019178,2]
[370534000,1752059439032,-460.0,0.00019178,2]
[370534001,1752059439040,-460.0,0.00019178,2]
[370534002,1752059439050,-460.0,0.00019178,2]
[370534003,1752059439060,-460.0,0.00019178,2]
[370534004,1752059439070,-460.0,0.00019178,2]
[370534005,1752059439080,-460.0,0.00019178,2]
[370534006,1752059439091,-460.0,0.00019178,2]
[370534007,1752059439101,-460.0,0.00019178,2]
[370534008,1752059439110,-460.0,0.00019178,2]
[370534009,1752059439120,-460.0,0.00019178,2]
[370534010,1752059439130,-460.0,0.00019178,2]
[370534011,1752059439140,-460.0,0.00019178,2]
[370534012,1752059439149,-460.0,0.00019178,2]
[370534013,1752059439158,-460.0,0.00019178,2]
[370534014,1752059439167,-460.0,0.00019178,2]
[370534015,1752059439177,-5401.19,0.00019178,2]
[370534016,1752059439187,-460.0,0.00019178,2]
[370534017,1752059439197,-1411.26,0.00019178,2]
[370534018,1752059439207,-3095.11,0.00019178,2]
[370534019,1752059439217,-460.0,0.00019178,2]
[370534020,1752059439226,-3619.63,0.00019178,2]
[370534021,1752059439236,-460.0,0.00019178,2]
[370534022,1752059439245,-460.0,0.00019178,2]
[370534023,1752059439255,-460.0,0.00019178,2]
[370534024,1752059439265,-460.0,0.00019178,2]
[370534025,1752059439275,-551.0,0.00019178,2]
[370534026,1752059439284,-460.0,0.00019178,2]
[370534027,1752059439293,-460.0,0.00019178,2]
[370534028,1752059439302,-460.0,0.00019178,2]
[370534029,1752059439312,-460.0,0.00019178,2]
[370534030,1752059439322,-460.0,0.00019178,2]
[370534031,1752059439331,-151.0,0.00019178,2]
[370534032,1752059439341,-151.0,0.00019178,2]
[370534033,1752059439350,-151.0,0.00019178,2]
[370534034,1752059439360,-1524.87,0.00019178,2]
[370534035,1752059439369,-500.0,0.00019178,2]
[370534036,1752059439379,-460.0,0.00019178,2]
[370534037,1752059439388,-460.0,0.00019178,2]
[370534038,1752059439399,-151.0,0.00019178,2]
[370534039,1752059439408,-460.0,0.00019178,2]
[370534040,1752059439418,-460.0,0.00019178,2]
[370534041,1752059439428,-151.0,0.00019178,2]
[370534042,1752059439437,-460.0,0.00019178,2]
[370534043,1752059439447,-460.0,0.00019178,2]
[370534044,1752059439457,-539.5,0.00019178,2]
[370534045,1752059439467,-460.0,0.00019178,2]
[370534046,1752059439476,-199.15336165,0.00019178,2]
[370534047,1752059439485,-460.0,0.00019178,2]
[370534048,1752059439495,-460.0,0.00019178,2]
[370534049,1752059439505,-460.0,0.00019178,2]
[370534050,1752059439514,-460.0,0.00019178,2]
[370534051,1752059439524,-460.0,0.00019178,2]
[370534052,1752059439533,-460.0,0.00019178,2]
[370534053,1752059439543,-460.0,0.00019178,2]
[370534054,1752059439552,-460.0,0.00019178,2]
[370534055,1752059439561,-460.0,0.00019178,2]
[370534056,1752059439571,-460.0,0.00019178,2]
[370534057,1752059439581,-460.0,0.00019178,2]
[370534058,1752059439591,-460.0,0.00019178,2]
[370534060,1752059439600,-460.0,0.00019178,2]
[370534061,1752059439610,-460.0,0.00019178,2]
[370534062,1752059439621,-407.40814488,0.00019178,2]
[370534063,1752059439636,-204.98472858,0.00019178,2]
[370534064,1752059439648,-460.0,0.00019178,2]
[370534065,1752059439660,-460.0,0.00019178,2]
[370534066,1752059439670,-532.09,0.00019178,2]
[370534067,1752059439680,-460.0,0.00019178,2]
[370534068,1752059439690,-460.0,0.00019178,2]
[370534069,1752059439699,-460.0,0.00019178,2]
[370534070,1752059439710,-460.0,0.00019178,2]
[370534071,1752059439725,-469.28,0.00019178,2]
[370534072,1752059439734,-460.0,0.00019178,2]
[370534073,1752059439745,-1514.59,0.00019178,2]
[370534074,1752059439754,-895.22,0.00019178,2]
[370534075,1752059439763,-269.75,0.00019178,2]
[370534076,1752059439773,-1214.91,0.00019178,2]
[370534077,1752059439782,-460.0,0.00019178,2]
[370534078,1752059439792,-460.0,0.00019178,2]
[370534079,1752059439801,-460.0,0.00019178,2]
[370534080,1752059439812,-1749.11,0.00019178,2]
[370534081,1752059439821,-460.0,0.00019178,2]
[370534082,1752059439830,-460.0,0.00019178,2]
[370534083,1752059439842,-460.0,0.00019178,2]
[370534084,1752059439852,-460.0,0.00019178,2]
[370534085,1752059439862,-460.0,0.00019178,2]
[370534086,1752059439872,-460.0,0.00019178,2]
[370534087,1752059439883,-460.0,0.00019178,2]
[370534088,1752059439894,-460.0,0.00019178,2]
[370534089,1752059439903,-460.0,0.00019178,2]
[370534090,1752059439913,-460.0,0.00019178,2]
[370534091,1752059439922,-460.0,0.00019178,2]
[370534092,1752059439932,-286.58903439,0.00019178,2]
[370534093,1752059439941,-1032.42,0.00019178,2]
[370534094,1752059439951,-1937.1,0.00019178,2]
[370534095,1752059439960,-460.0,0.00019178,2]
[370534096,1752059439970,-300.8146874,0.00019178,2]
[370534097,1752059439979,-460.0,0.00019178,2]
[370534098,1752059439989,-460.0,0.00019178,2]
[370534099,1752059439998,-460.0,0.00019178,2]
[370534100,1752059440007,-460.0,0.00019178,2]
[370534101,1752059440016,-460.0,0.00019178,2]
[370534102,1752059440025,-460.0,0.00019178,2]
[370534103,1752059440034,-460.0,0.00019178,2]
[370534104,1752059440044,-460.0,0.00019178,2]
[370534105,1752059440053,-500.0,0.00019178,2]
[370534106,1752059440062,-460.0,0.00019178,2]
[370534107,1752059440071,-460.0,0.00019178,2]
[370534108,1752059440082,-460.0,0.00019178,2]
[370534109,1752059440092,-460.0,0.00019178,2]
[370534110,1752059440101,-2202.77,0.00019178,2]
[370534111,1752059440110,-460.0,0.00019178,2]
[370534112,1752059440120,-613.6,0.00019178,2]
[370534113,1752059440129,-460.0,0.00019178,2]
[370534114,1752059440138,-536.98,0.00019178,2]
[370534115,1752059440148,-536.98,0.00019178,2]
[370534116,1752059440157,-460.0,0.00019178,2]
[370534117,1752059440166,-536.98,0.00019178,2]
[370534118,1752059440176,-536.98,0.00019178,2]
[370534119,1752059440186,-536.98,0.00019178,2]
[370534120,1752059440196,-536.98,0.00019178,2]
[370534121,1752059440206,-460.0,0.00019178,2]
[370534122,1752059440215,-1657.86,0.00019178,2]
[370534123,1752059440224,-460.0,0.00019178,2]
[370534124,1752059440234,-460.0,0.00019178,2]
[370534125,1752059440243,-460.0,0.00019178,2]
[370534126,1752059440253,-460.0,0.00019178,2]
[370534127,1752059440263,-460.0,0.00019178,2]
[370534128,1752059440272,-460.0,0.00019178,2]
[370534129,1752059440282,-460.0,0.00019178,2]
[370534130,1752059440291,-546.83,0.00019178,2]
[370534131,1752059440302,-460.0,0.00019178,2]
[370534132,1752059440311,-460.0,0.00019178,2]
[370534133,1752059440321,-460.0,0.00019178,2]
[370534134,1752059440331,-226.00683619,0.00019178,2]
[370534136,1752059440340,-847.03,0.00019178,2]
[370534138,1752059440350,-735.39,0.00019178,2]
[370534140,1752059440359,-460.0,0.00019178,2]
[370534142,1752059440369,-460.0,0.00019178,2]
[370534144,1752059440378,-460.0,0.00019178,2]
[370534146,1752059440389,-460.0,0.00019178,2]
[370534148,1752059440399,-460.0,0.00019178,2]
[370534150,1752059440408,-460.0,0.00019178,2]
[370534152,1752059440418,-460.0,0.00019178,2]
[370534154,1752059440428,-460.0,0.00019178,2]
[370534156,1752059440438,-460.0,0.00019178,2]
[370534158,1752059440449,-460.0,0.00019178,2]
[370534160,1752059440459,-460.0,0.00019178,2]
[370534162,1752059440469,-537.15,0.00019178,2]
[370534164,1752059440479,-769.06,0.00019178,2]
[370534166,1752059440488,-460.0,0.00019178,2]
[370534168,1752059440497,-216.60441195,0.00019178,2]
[370534170,1752059440507,-460.0,0.00019178,2]
[370534172,1752059440517,-546.9,0.00019178,2]
[370534174,1752059440527,-547.44,0.00019178,2]
[370534189,1752059440537,-460.0,0.00019178,2]
[370534191,1752059440677,-460.0,0.00019178,2]
[370534193,1752059440687,-460.0,0.00019178,2]
[370534195,1752059440696,-500.0,0.00019178,2]
[370534197,1752059440706,-460.0,0.00019178,2]
[370534199,1752059440716,-460.0,0.00019178,2]
[370534201,1752059440725,-474.6,0.00019178,2]
[370534203,1752059440734,-460.0,0.00019178,2]
[370534205,1752059440744,-460.0,0.00019178,2]
[370534207,1752059440754,-151.0,0.00019178,2]
[370534209,1752059440763,-460.0,0.00019178,2]
[370534211,1752059440772,-151.0,0.00019178,2]
[370534213,1752059440782,-1233.24,0.00019178,2]
[370534215,1752059440792,-460.0,0.00019178,2]
[370534217,1752059440802,-151.0,0.00019178,2]
[370534219,1752059440812,-460.0,0.00019178,2]
[370534221,1752059440821,-460.0,0.00019178,2]
[370534223,1752059440830,-244.26829097,0.00019178,2]
[370534225,1752059440839,-460.0,0.00019178,2]
[370534226,1752059440849,-460.0,0.00019178,2]
[370534228,1752059440858,-199.11940999,0.00019178,2]
[370534230,1752059440869,-151.0,0.00019178,2]
[370534232,1752059440879,-151.0,0.00019178,2]
[370534234,1752059440888,-177.580059,0.00019178,2]
[370534237,1752059440898,-500.0,0.00019178,2]
[370534238,1752059440907,-551.0,0.00019205,2]
[370534240,1752059440917,-151.89324208,0.00019205,2]
[370534242,1752059440927,-200.5225941,0.00019205,2]
[370534244,1752059440936,-151.0,0.00019205,2]
[370534246,1752059440946,-500.0,0.00019205,2]
[370534248,1752059440955,-151.28214266,0.00019205,2]
[370534250,1752059440964,-263.68784913,0.00019205,2]
[370534252,1752059440974,-500.0,0.00019205,2]
[370534254,1752059440983,-151.0,0.00019205,2]
[370534256,1752059440993,-151.0,0.00019205,2]
[370534258,1752059441002,-551.0,0.00019233,2]
[370534260,1752059441011,-151.0,0.00019233,2]
[370534262,1752059441020,-500.0,0.00019233,2]
[370534264,1752059441030,-500.0,0.00019233,2]
[370534266,1752059441046,-501.75225861,0.00019233,2]
[370534268,1752059441055,-151.0,0.00019233,2]
[370534270,1752059441065,-151.0,0.00019233,2]
[370534272,1752059441074,-551.0,0.0001926,2]
[370534274,1752059441084,-199.22773657,0.0001926,2]
[370534276,1752059441093,-500.0,0.0001926,2]
[370534278,1752059441103,-500.0,0.0001926,2]
[370534280,1752059441112,-151.0,0.0001926,2]
[370534282,1752059441122,-201.00789742,0.0001926,2]
[370534284,1752059441132,-551.0,0.00019288,2]
[370534286,1752059441141,-500.0,0.00019288,2]
[370534288,1752059441150,-632.70857585,0.00019288,2]
[370534290,1752059441160,-151.0,0.00019288,2]
[370534292,1752059441170,-551.0,0.00019315,2]
[370534294,1752059441179,-500.0,0.00019315,2]
[370534296,1752059441188,-245.0,0.00019315,2]
[370534298,1752059441198,-551.0,0.00019342,2]
[370534300,1752059441207,-500.0,0.00019342,2]